[Event "Late-Titled-Tuesday-Blitz-December-26-2023"]
[Site "Chess.com"]
[Date "2023.12.26"]
[Round "8"]
[White "HajiyevKanan"]
[Black "OneTrickPony_82"]
[Result "1-0"]
[WhiteElo "2631"]
[BlackElo "2492"]
[TimeControl "180+1"]
[EndTime "15:23:52 PST"]
[Termination "HajiyevKanan won by resignation"]

1. d4 {[%clk 0:02:34.7]} 1... Nf6 {[%clk 0:02:59.4]} 2. Nf3 {[%clk 0:02:35.6]}
2... d5 {[%clk 0:02:59.3]} 3. c4 {[%clk 0:02:35.3]} 3... e6 {[%clk 0:02:59.3]}
4. cxd5 {[%clk 0:02:36.2]} 4... exd5 {[%clk 0:02:59.2]} 5. Nc3 {[%clk
0:02:36.9]} 5... c6 {[%clk 0:02:58.5]} 6. Qc2 {[%clk 0:02:37.5]} 6... g6 {[%clk
0:02:56.7]} 7. Bg5 {[%clk 0:02:37.8]} 7... Bf5 {[%clk 0:02:54.1]} 8. Qb3 {[%clk
0:02:37.2]} 8... Nbd7 {[%clk 0:02:33.2]} 9. e4 {[%clk 0:02:35.1]} 9... dxe4
{[%clk 0:02:07.6]} 10. Ne5 {[%clk 0:02:34.3]} 10... Be6 {[%clk 0:01:53.8]} 11.
Bc4 {[%clk 0:02:34]} 11... Nb6 {[%clk 0:01:37.4]} 12. Bxe6 {[%clk 0:02:31]}
12... fxe6 {[%clk 0:01:37.8]} 13. Qxe6+ {[%clk 0:02:31.2]} 13... Qe7 {[%clk
0:01:38.2]} 14. Qxf6 {[%clk 0:02:28]} 14... Qxf6 {[%clk 0:01:37.9]} 15. Bxf6
{[%clk 0:02:28.9]} 15... Rg8 {[%clk 0:01:38.4]} 16. O-O-O {[%clk 0:02:23.5]}
16... Be7 {[%clk 0:01:35]} 17. Nxe4 {[%clk 0:02:21.4]} 17... Rf8 {[%clk
0:01:33.5]} 18. Bxe7 {[%clk 0:02:19.7]} 18... Kxe7 {[%clk 0:01:34.4]} 19. Rhe1
{[%clk 0:02:19.1]} 19... Nd5 {[%clk 0:01:33.4]} 20. g3 {[%clk 0:02:16.9]} 20...
Rae8 {[%clk 0:01:31.8]} 21. f4 {[%clk 0:02:17.1]} 21... Kd8 {[%clk 0:01:30.8]}
22. Nd6 {[%clk 0:02:17]} 22... Re7 {[%clk 0:01:29]} 23. a3 {[%clk 0:02:05.8]}
23... Kc7 {[%clk 0:01:29]} 24. Ne4 {[%clk 0:02:02.8]} 24... Rg7 {[%clk
0:01:27.6]} 25. Ng5 {[%clk 0:01:59.3]} 25... Rf6 {[%clk 0:01:24.1]} 26. Ng4
{[%clk 0:01:57]} 1-0

[Event "Late-Titled-Tuesday-Blitz-December-26-2023"]
[Site "Chess.com"]
[Date "2023.12.26"]
[Round "8"]
[White "AGW2016"]
[Black "Doraemon7"]
[Result "0-1"]
[WhiteElo "2575"]
[BlackElo "2697"]
[TimeControl "180+1"]
[EndTime "15:24:19 PST"]
[Termination "Doraemon7 won by resignation"]

1. d4 {[%clk 0:03:00.9]} 1... Nf6 {[%clk 0:02:58]} 2. Nc3 {[%clk 0:03:00.5]}
2... d5 {[%clk 0:02:49.6]} 3. Bf4 {[%clk 0:03:00.6]} 3... c5 {[%clk 0:02:49.8]}
4. e4 {[%clk 0:03:00.3]} 4... Nxe4 {[%clk 0:02:48.9]} 5. Nxe4 {[%clk 0:02:59.6]}
5... dxe4 {[%clk 0:02:49.8]} 6. dxc5 {[%clk 0:03:00.4]} 6... Qa5+ {[%clk
0:02:50.3]} 7. c3 {[%clk 0:03:01.1]} 7... Qxc5 {[%clk 0:02:50.8]} 8. Qa4+ {[%clk
0:03:01.9]} 8... Nc6 {[%clk 0:02:50.4]} 9. Qxe4 {[%clk 0:03:02.7]} 9... g6
{[%clk 0:02:51]} 10. Nf3 {[%clk 0:03:02]} 10... Bg7 {[%clk 0:02:51.6]} 11. Qe3
{[%clk 0:03:02.5]} 11... Qxe3+ {[%clk 0:02:43.2]} 12. Bxe3 {[%clk 0:03:03.4]}
12... O-O {[%clk 0:02:43.2]} 13. Be2 {[%clk 0:03:03.6]} 13... Bf5 {[%clk
0:02:34.8]} 14. O-O {[%clk 0:03:02.6]} 14... Rfd8 {[%clk 0:02:34.2]} 15. Rfd1
{[%clk 0:03:02.7]} 15... Bc2 {[%clk 0:02:10.5]} 16. Rxd8+ {[%clk 0:02:51.6]}
16... Rxd8 {[%clk 0:02:11.4]} 17. Rc1 {[%clk 0:02:51.8]} 17... Be4 {[%clk
0:02:06]} 18. Kf1 {[%clk 0:02:51.1]} 18... Bd5 {[%clk 0:01:59.2]} 19. b3 {[%clk
0:02:46.3]} 19... h6 {[%clk 0:01:56.3]} 20. c4 {[%clk 0:02:35.3]} 20... Be4
{[%clk 0:01:53]} 21. Nd2 {[%clk 0:02:20.8]} 21... Bd3 {[%clk 0:01:37.8]} 22.
Bxd3 {[%clk 0:02:21.1]} 22... Rxd3 {[%clk 0:01:38.1]} 23. Ke2 {[%clk 0:02:21.9]}
23... Rd7 {[%clk 0:01:36.8]} 24. Ne4 {[%clk 0:02:20.2]} 24... b6 {[%clk
0:01:31.4]} 25. Rd1 {[%clk 0:02:18.4]} 25... Rb7 {[%clk 0:01:29.4]} 26. g4
{[%clk 0:02:12.5]} 26... f5 {[%clk 0:01:19.2]} 27. gxf5 {[%clk 0:02:12.5]} 27...
gxf5 {[%clk 0:01:20.1]} 28. Ng3 {[%clk 0:02:09.1]} 28... e6 {[%clk 0:01:20.6]}
29. Nh5 {[%clk 0:02:09.8]} 29... Be5 {[%clk 0:01:13.2]} 30. Bxh6 {[%clk
0:02:05.3]} 30... Rh7 {[%clk 0:01:10.2]} 31. Bf4 {[%clk 0:02:03.4]} 31... Rxh5
{[%clk 0:01:10]} 32. Bxe5 {[%clk 0:02:01.5]} 32... Nxe5 {[%clk 0:01:10.9]} 33.
Rd6 {[%clk 0:02:00.6]} 33... Kf7 {[%clk 0:01:06.2]} 34. Rd8 {[%clk 0:02:00.7]}
34... Rxh2 {[%clk 0:01:03.6]} 35. Ra8 {[%clk 0:02:01.5]} 0-1

[Event "Late-Titled-Tuesday-Blitz-December-26-2023"]
[Site "Chess.com"]
[Date "2023.12.26"]
[Round "8"]
[White "Alexei_Gubajdullin"]
[Black "McCarthyStone"]
[Result "1-0"]
[WhiteElo "2597"]
[BlackElo "2399"]
[TimeControl "180+1"]
[EndTime "15:24:19 PST"]
[Termination "Alexei_Gubajdullin won by resignation"]

1. e4 {[%clk 0:03:00]} 1... e5 {[%clk 0:02:59.5]} 2. d4 {[%clk 0:02:58.5]} 2...
d6 {[%clk 0:02:54.7]} 3. dxe5 {[%clk 0:02:57.1]} 3... dxe5 {[%clk 0:02:55.6]} 4.
Qxd8+ {[%clk 0:02:57.4]} 4... Kxd8 {[%clk 0:02:56.5]} 5. Bc4 {[%clk 0:02:57.7]}
5... Be6 {[%clk 0:02:55.6]} 6. Bxe6 {[%clk 0:02:57.5]} 6... fxe6 {[%clk
0:02:56.5]} 7. f3 {[%clk 0:02:57.3]} 7... Nd7 {[%clk 0:02:55.6]} 8. Be3 {[%clk
0:02:56.9]} 8... Bc5 {[%clk 0:02:55.4]} 9. Ke2 {[%clk 0:02:55.7]} 9... c6 {[%clk
0:02:54.3]} 10. Nh3 {[%clk 0:02:55.6]} 10... h6 {[%clk 0:02:46.6]} 11. Nf2
{[%clk 0:02:55.6]} 11... Ne7 {[%clk 0:02:39.2]} 12. Nd3 {[%clk 0:02:55.4]} 12...
Bxe3 {[%clk 0:02:38.2]} 13. Kxe3 {[%clk 0:02:55.7]} 13... Kc7 {[%clk 0:02:38.8]}
14. Nd2 {[%clk 0:02:55.7]} 14... g5 {[%clk 0:02:37.5]} 15. Nc4 {[%clk
0:02:54.3]} 15... Ng6 {[%clk 0:02:38]} 16. a4 {[%clk 0:02:54.3]} 16... Nf4
{[%clk 0:02:34.3]} 17. g3 {[%clk 0:02:50.1]} 17... Nxd3 {[%clk 0:02:34.3]} 18.
cxd3 {[%clk 0:02:50.2]} 18... Raf8 {[%clk 0:02:23.9]} 19. h4 {[%clk 0:02:48.1]}
19... gxh4 {[%clk 0:02:11.3]} 20. Rxh4 {[%clk 0:02:47.4]} 20... Rhg8 {[%clk
0:02:11.4]} 21. g4 {[%clk 0:02:46.4]} 21... Rf6 {[%clk 0:02:11.1]} 22. Rah1
{[%clk 0:02:45.6]} 22... Rgg6 {[%clk 0:02:06.3]} 23. Rh5 {[%clk 0:02:44.2]}
23... Nc5 {[%clk 0:01:36.6]} 24. Nxe5 {[%clk 0:02:40.7]} 24... Rg5 {[%clk
0:01:35.8]} 25. a5 {[%clk 0:02:35.6]} 25... Nb3 {[%clk 0:00:59.9]} 26. a6 {[%clk
0:02:35.1]} 26... b5 {[%clk 0:00:54.9]} 27. Rxg5 {[%clk 0:02:34.3]} 27... hxg5
{[%clk 0:00:54.9]} 28. Rh5 {[%clk 0:02:34.9]} 28... Nc5 {[%clk 0:00:43.7]} 29.
Rxg5 {[%clk 0:02:34.6]} 29... Nxa6 {[%clk 0:00:43.5]} 30. Rg7+ {[%clk
0:02:34.5]} 30... Kc8 {[%clk 0:00:37.4]} 31. Nxc6 {[%clk 0:02:31.7]} 31... Nc7
{[%clk 0:00:37.9]} 32. Nxa7+ {[%clk 0:02:30.8]} 1-0

[Event "Late-Titled-Tuesday-Blitz-December-26-2023"]
[Site "Chess.com"]
[Date "2023.12.26"]
[Round "8"]
[White "thesupera12"]
[Black "shaya01"]
[Result "1-0"]
[WhiteElo "2393"]
[BlackElo "2217"]
[TimeControl "180+1"]
[EndTime "15:24:51 PST"]
[Termination "thesupera12 won by checkmate"]

1. d4 {[%clk 0:03:00.9]} 1... Nf6 {[%clk 0:02:53.8]} 2. Bg5 {[%clk 0:02:58.4]}
2... b6 {[%clk 0:02:50.2]} 3. Bxf6 {[%clk 0:02:53.9]} 3... exf6 {[%clk
0:02:45.4]} 4. Nf3 {[%clk 0:02:54.8]} 4... Bb7 {[%clk 0:02:45.4]} 5. e3 {[%clk
0:02:53.9]} 5... f5 {[%clk 0:02:44.6]} 6. g3 {[%clk 0:02:52.1]} 6... g6 {[%clk
0:02:43.1]} 7. Bg2 {[%clk 0:02:52]} 7... Bg7 {[%clk 0:02:43.4]} 8. O-O {[%clk
0:02:52.6]} 8... O-O {[%clk 0:02:43.2]} 9. c4 {[%clk 0:02:51.5]} 9... d6 {[%clk
0:02:38.5]} 10. Nc3 {[%clk 0:02:50.8]} 10... Nd7 {[%clk 0:02:38.5]} 11. Rc1
{[%clk 0:02:50]} 11... Nf6 {[%clk 0:02:37.4]} 12. b4 {[%clk 0:02:48.4]} 12...
Ne4 {[%clk 0:02:37.4]} 13. Nxe4 {[%clk 0:02:45.7]} 13... fxe4 {[%clk 0:02:35.5]}
14. Nd2 {[%clk 0:02:43.9]} 14... c5 {[%clk 0:02:32.1]} 15. bxc5 {[%clk
0:02:38.3]} 15... dxc5 {[%clk 0:02:31.3]} 16. dxc5 {[%clk 0:02:30.1]} 16... Qe7
{[%clk 0:02:24.7]} 17. cxb6 {[%clk 0:02:27.7]} 17... axb6 {[%clk 0:02:20.9]} 18.
Qc2 {[%clk 0:02:27.7]} 18... f5 {[%clk 0:02:15.4]} 19. Nb3 {[%clk 0:02:26.8]}
19... Qa3 {[%clk 0:02:11.1]} 20. c5 {[%clk 0:02:20.4]} 20... Ba6 {[%clk
0:02:09.2]} 21. Rfd1 {[%clk 0:02:19]} 21... bxc5 {[%clk 0:02:09]} 22. Nxc5
{[%clk 0:02:16.3]} 22... Rfc8 {[%clk 0:02:03.4]} 23. Qb3+ {[%clk 0:02:15.6]}
23... Qxb3 {[%clk 0:02:03]} 24. axb3 {[%clk 0:02:14.8]} 24... Bf8 {[%clk
0:02:03]} 25. Nxa6 {[%clk 0:02:13.2]} 25... Rxc1 {[%clk 0:02:02]} 26. Rxc1
{[%clk 0:02:13]} 26... Rxa6 {[%clk 0:02:02.2]} 27. Bf1 {[%clk 0:02:12.3]} 27...
Rb6 {[%clk 0:02:00.4]} 28. Rc7 {[%clk 0:02:11.3]} 28... Rb8 {[%clk 0:01:44.2]}
29. Bc4+ {[%clk 0:02:09.9]} 29... Kh8 {[%clk 0:01:44.3]} 30. Kg2 {[%clk
0:02:10.7]} 30... Bd6 {[%clk 0:01:40.1]} 31. Rd7 {[%clk 0:02:09.1]} 31... Be5
{[%clk 0:01:39.9]} 32. Re7 {[%clk 0:02:08.4]} 32... Bf6 {[%clk 0:01:38.9]} 33.
Re6 {[%clk 0:02:04.9]} 33... Kg7 {[%clk 0:01:37.5]} 34. b4 {[%clk 0:01:57.4]}
34... Rxb4 {[%clk 0:01:32.9]} 35. Rc6 {[%clk 0:01:56]} 35... Rb8 {[%clk
0:01:24.4]} 36. Rc7+ {[%clk 0:01:55.3]} 36... Kh6 {[%clk 0:01:20.5]} 37. h3
{[%clk 0:01:51.1]} 37... g5 {[%clk 0:01:19.5]} 38. Be6 {[%clk 0:01:41.1]} 38...
Rb5 {[%clk 0:01:12.4]} 39. Bg8 {[%clk 0:01:40.7]} 39... Bg7 {[%clk 0:01:11.9]}
40. Rc6+ {[%clk 0:01:40.3]} 40... Kh5 {[%clk 0:01:11.4]} 41. Bf7# {[%clk
0:01:40.7]} 1-0

[Event "Late-Titled-Tuesday-Blitz-December-26-2023"]
[Site "Chess.com"]
[Date "2023.12.26"]
[Round "8"]
[White "DanylaBagrov"]
[Black "SergioMoralesG"]
[Result "0-1"]
[WhiteElo "2562"]
[BlackElo "2434"]
[TimeControl "180+1"]
[EndTime "15:25:12 PST"]
[Termination "SergioMoralesG won by resignation"]

1. d4 {[%clk 0:03:00.9]} 1... d5 {[%clk 0:02:58.6]} 2. c4 {[%clk 0:02:59.2]}
2... c6 {[%clk 0:02:59.1]} 3. Nf3 {[%clk 0:02:59]} 3... Nf6 {[%clk 0:02:59.6]}
4. e3 {[%clk 0:02:56.8]} 4... Bf5 {[%clk 0:02:58.8]} 5. Nc3 {[%clk 0:02:54]}
5... e6 {[%clk 0:02:59.1]} 6. Nh4 {[%clk 0:02:54.6]} 6... Be4 {[%clk 0:02:59.6]}
7. f3 {[%clk 0:02:54.8]} 7... Bg6 {[%clk 0:03:00.1]} 8. Bd2 {[%clk 0:02:55.5]}
8... Be7 {[%clk 0:02:56.7]} 9. Qb3 {[%clk 0:02:54.6]} 9... Qc7 {[%clk
0:02:56.6]} 10. Rc1 {[%clk 0:02:45.6]} 10... Nbd7 {[%clk 0:02:47.9]} 11. g3
{[%clk 0:02:28.6]} 11... a6 {[%clk 0:02:45.3]} 12. Nxg6 {[%clk 0:02:28]} 12...
hxg6 {[%clk 0:02:44.8]} 13. cxd5 {[%clk 0:02:28.5]} 13... exd5 {[%clk
0:02:42.6]} 14. Nxd5 {[%clk 0:02:28.6]} 14... Nxd5 {[%clk 0:02:33.3]} 15. Qxd5
{[%clk 0:02:28.7]} 15... Rxh2 {[%clk 0:02:24.9]} 16. f4 {[%clk 0:02:11.8]} 16...
cxd5 {[%clk 0:02:19.9]} 17. Rxh2 {[%clk 0:02:09.7]} 17... Qb6 {[%clk 0:02:08.3]}
18. b3 {[%clk 0:02:05.6]} 18... Bb4 {[%clk 0:02:05.1]} 19. Bg2 {[%clk
0:02:01.9]} 19... Bxd2+ {[%clk 0:02:03.1]} 20. Kxd2 {[%clk 0:02:02.8]} 20... Ke7
{[%clk 0:01:57.1]} 21. Ke2 {[%clk 0:01:58.6]} 21... Nf6 {[%clk 0:01:50.3]} 22.
Rc5 {[%clk 0:01:55.2]} 22... Rd8 {[%clk 0:01:40.1]} 23. Bf3 {[%clk 0:01:53.5]}
23... Qb4 {[%clk 0:01:37.9]} 24. Kd1 {[%clk 0:01:45.2]} 24... Rd6 {[%clk
0:01:29.1]} 25. Rc7+ {[%clk 0:01:44.3]} 25... Rd7 {[%clk 0:01:29.1]} 26. Rc5
{[%clk 0:01:44.3]} 26... Ne4 {[%clk 0:01:06.1]} 27. Bxe4 {[%clk 0:01:30.7]}
27... dxe4 {[%clk 0:01:07]} 28. Rh8 {[%clk 0:01:28.5]} 28... Rxd4+ {[%clk
0:00:58.8]} 29. exd4 {[%clk 0:01:25.4]} 29... Qxd4+ {[%clk 0:00:59.7]} 30. Ke2
{[%clk 0:01:26]} 30... Qxc5 {[%clk 0:00:59.6]} 31. Rb8 {[%clk 0:01:25.2]} 31...
Qc2+ {[%clk 0:00:56.7]} 32. Ke3 {[%clk 0:01:24]} 32... Qd3+ {[%clk 0:00:56.2]}
33. Kf2 {[%clk 0:01:24.7]} 33... Qf3+ {[%clk 0:00:55]} 34. Ke1 {[%clk
0:01:24.9]} 34... e3 {[%clk 0:00:52.5]} 0-1

[Event "Late-Titled-Tuesday-Blitz-December-26-2023"]
[Site "Chess.com"]
[Date "2023.12.26"]
[Round "8"]
[White "VitorBronson"]
[Black "FREZZY23"]
[Result "1-0"]
[WhiteElo "2533"]
[BlackElo "2385"]
[TimeControl "180+1"]
[EndTime "15:25:27 PST"]
[Termination "VitorBronson won by resignation"]

1. c4 {[%clk 0:02:57.6]} 1... Nf6 {[%clk 0:02:58.7]} 2. Nc3 {[%clk 0:02:57.3]}
2... g6 {[%clk 0:02:58.4]} 3. g3 {[%clk 0:02:57.5]} 3... Bg7 {[%clk 0:02:58.3]}
4. Bg2 {[%clk 0:02:58.2]} 4... O-O {[%clk 0:02:59.1]} 5. d4 {[%clk 0:02:57.5]}
5... d6 {[%clk 0:02:59.3]} 6. h3 {[%clk 0:02:57.6]} 6... Nc6 {[%clk 0:02:58.9]}
7. Nf3 {[%clk 0:02:57.4]} 7... a6 {[%clk 0:02:59.4]} 8. O-O {[%clk 0:02:55.6]}
8... Bf5 {[%clk 0:02:55.9]} 9. g4 {[%clk 0:02:49.7]} 9... Bd7 {[%clk 0:02:52.7]}
10. e4 {[%clk 0:02:49.1]} 10... e5 {[%clk 0:02:43.3]} 11. Be3 {[%clk 0:02:48.9]}
11... Re8 {[%clk 0:02:33.9]} 12. dxe5 {[%clk 0:02:47.9]} 12... Nxe5 {[%clk
0:02:32.5]} 13. Nxe5 {[%clk 0:02:42.9]} 13... dxe5 {[%clk 0:02:32.8]} 14. Qb3
{[%clk 0:02:40.3]} 14... b6 {[%clk 0:02:07.6]} 15. Rad1 {[%clk 0:02:39.6]} 15...
Qc8 {[%clk 0:02:04.8]} 16. f4 {[%clk 0:02:27]} 16... exf4 {[%clk 0:02:03]} 17.
Bxf4 {[%clk 0:02:27.2]} 17... Bc6 {[%clk 0:02:01.5]} 18. c5 {[%clk 0:02:23.1]}
18... Qb7 {[%clk 0:01:47.5]} 19. Nd5 {[%clk 0:02:21.2]} 19... Nxe4 {[%clk
0:01:15]} 20. Nxc7 {[%clk 0:02:18.2]} 20... Nxc5 {[%clk 0:01:14.9]} 21. Bxc6
{[%clk 0:02:16.9]} 21... Qxc6 {[%clk 0:01:15.3]} 22. Qc2 {[%clk 0:02:05.7]}
22... g5 {[%clk 0:00:40.5]} 23. Nxe8 {[%clk 0:02:03.8]} 23... gxf4 {[%clk
0:00:40.4]} 24. Nxg7 {[%clk 0:02:03.7]} 24... Kxg7 {[%clk 0:00:38.8]} 25. b4
{[%clk 0:02:03.1]} 25... Qe4 {[%clk 0:00:25.8]} 26. Qc3+ {[%clk 0:01:57.7]}
26... Kg6 {[%clk 0:00:23.2]} 27. bxc5 {[%clk 0:01:54.7]} 27... Kg5 {[%clk
0:00:23.8]} 28. Qf3 {[%clk 0:01:42.2]} 28... Qe5 {[%clk 0:00:19.1]} 29. Rd5
{[%clk 0:01:35.6]} 1-0

[Event "Late-Titled-Tuesday-Blitz-December-26-2023"]
[Site "Chess.com"]
[Date "2023.12.26"]
[Round "8"]
[White "Mystery2007"]
[Black "Flaccidmoves"]
[Result "0-1"]
[WhiteElo "2554"]
[BlackElo "2407"]
[TimeControl "180+1"]
[EndTime "15:25:31 PST"]
[Termination "Flaccidmoves won by resignation"]

1. Nf3 {[%clk 0:03:00.9]} 1... e6 {[%clk 0:02:56.8]} 2. d4 {[%clk 0:03:01.3]}
2... c5 {[%clk 0:02:55.8]} 3. c3 {[%clk 0:02:58]} 3... b6 {[%clk 0:02:55.1]} 4.
Bf4 {[%clk 0:02:55.1]} 4... Bb7 {[%clk 0:02:54.6]} 5. e3 {[%clk 0:02:54.6]} 5...
Nf6 {[%clk 0:02:53.9]} 6. Nbd2 {[%clk 0:02:54.3]} 6... d5 {[%clk 0:02:53.1]} 7.
h3 {[%clk 0:02:53.8]} 7... Bd6 {[%clk 0:02:53]} 8. Ne5 {[%clk 0:02:52.3]} 8...
O-O {[%clk 0:02:46.3]} 9. Bd3 {[%clk 0:02:52.2]} 9... Nc6 {[%clk 0:02:44.7]} 10.
Ndf3 {[%clk 0:02:29.8]} 10... Ne4 {[%clk 0:02:41.3]} 11. O-O {[%clk 0:02:18.1]}
11... Ne7 {[%clk 0:02:37.3]} 12. Nd2 {[%clk 0:02:10.6]} 12... Nxd2 {[%clk
0:02:19.1]} 13. Qxd2 {[%clk 0:02:11.5]} 13... f6 {[%clk 0:02:14.5]} 14. Nf3
{[%clk 0:02:05.1]} 14... Qc7 {[%clk 0:02:00.6]} 15. Rfe1 {[%clk 0:02:02.7]}
15... e5 {[%clk 0:01:59.1]} 16. dxe5 {[%clk 0:01:56.5]} 16... fxe5 {[%clk
0:02:00]} 17. Bxh7+ {[%clk 0:01:42.6]} 17... Kxh7 {[%clk 0:01:58.2]} 18. Ng5+
{[%clk 0:01:42.6]} 18... Kg8 {[%clk 0:01:33.5]} 19. Qd1 {[%clk 0:01:19.3]} 19...
Qd7 {[%clk 0:01:12.8]} 20. Qh5 {[%clk 0:01:11.4]} 20... Qf5 {[%clk 0:01:12.2]}
21. Bg3 {[%clk 0:01:07.6]} 21... Qg6 {[%clk 0:01:00.2]} 22. Qg4 {[%clk
0:01:02.9]} 22... Bc8 {[%clk 0:00:58]} 23. Qh4 {[%clk 0:00:49.3]} 23... Nf5
{[%clk 0:00:55.7]} 0-1

[Event "Late-Titled-Tuesday-Blitz-December-26-2023"]
[Site "Chess.com"]
[Date "2023.12.26"]
[Round "8"]
[White "Jesusesmifuerza"]
[Black "Balla_Tamas"]
[Result "0-1"]
[WhiteElo "2207"]
[BlackElo "2430"]
[TimeControl "180+1"]
[EndTime "15:25:34 PST"]
[Termination "Balla_Tamas won by resignation"]

1. e4 {[%clk 0:02:57.9]} 1... c5 {[%clk 0:03:00.1]} 2. Nf3 {[%clk 0:02:57.9]}
2... Nc6 {[%clk 0:03:00.5]} 3. d4 {[%clk 0:02:58.2]} 3... cxd4 {[%clk
0:03:01.4]} 4. Nxd4 {[%clk 0:02:59.1]} 4... e5 {[%clk 0:03:01.9]} 5. Nb5 {[%clk
0:02:59.3]} 5... d6 {[%clk 0:03:02.2]} 6. N1c3 {[%clk 0:02:59]} 6... a6 {[%clk
0:03:02.9]} 7. Na3 {[%clk 0:02:58.1]} 7... b5 {[%clk 0:03:03.7]} 8. Nd5 {[%clk
0:02:57.6]} 8... Nge7 {[%clk 0:03:04.4]} 9. Be3 {[%clk 0:02:57.5]} 9... Nxd5
{[%clk 0:02:55.1]} 10. exd5 {[%clk 0:02:58.4]} 10... Ne7 {[%clk 0:02:55]} 11. c3
{[%clk 0:02:53.3]} 11... Nf5 {[%clk 0:02:55.1]} 12. Nc2 {[%clk 0:02:52.7]} 12...
Be7 {[%clk 0:02:54.5]} 13. Be2 {[%clk 0:02:50.8]} 13... O-O {[%clk 0:02:54.2]}
14. O-O {[%clk 0:02:50.6]} 14... Bg5 {[%clk 0:02:54.6]} 15. Qd2 {[%clk
0:02:46.5]} 15... Nxe3 {[%clk 0:02:51.1]} 16. Nxe3 {[%clk 0:02:47.4]} 16... f5
{[%clk 0:02:50.7]} 17. a4 {[%clk 0:02:40.2]} 17... f4 {[%clk 0:02:48.9]} 18. Nc2
{[%clk 0:02:21.7]} 18... f3 {[%clk 0:02:47.4]} 19. Qd3 {[%clk 0:02:21.2]} 19...
fxe2 {[%clk 0:02:45.9]} 20. Qxe2 {[%clk 0:02:22.1]} 20... Bd7 {[%clk 0:02:43.3]}
21. a5 {[%clk 0:02:16.7]} 21... Qf6 {[%clk 0:02:20]} 22. Nb4 {[%clk 0:02:15.1]}
22... Qg6 {[%clk 0:02:11.3]} 23. g3 {[%clk 0:02:12.2]} 23... Bh3 {[%clk
0:02:04.2]} 24. Rfe1 {[%clk 0:02:08.6]} 24... Rf6 {[%clk 0:01:53.8]} 25. Nc6
{[%clk 0:02:06.7]} 25... Qf7 {[%clk 0:01:49]} 26. b3 {[%clk 0:01:48.3]} 26...
Rf8 {[%clk 0:01:47.7]} 27. Ra2 {[%clk 0:01:48.8]} 27... Kh8 {[%clk 0:01:45.5]}
28. Nb4 {[%clk 0:01:48.6]} 28... e4 {[%clk 0:01:26.4]} 29. Nxa6 {[%clk
0:01:33.6]} 29... e3 {[%clk 0:01:25]} 30. f4 {[%clk 0:01:31.6]} 30... Bxf4
{[%clk 0:01:13]} 31. gxf4 {[%clk 0:01:03]} 31... Rxf4 {[%clk 0:00:57.2]} 32.
Qxb5 {[%clk 0:01:03]} 32... Rf1+ {[%clk 0:00:54.8]} 0-1

[Event "Late-Titled-Tuesday-Blitz-December-26-2023"]
[Site "Chess.com"]
[Date "2023.12.26"]
[Round "8"]
[White "olawsson"]
[Black "Fore_Man"]
[Result "0-1"]
[WhiteElo "2165"]
[BlackElo "2383"]
[TimeControl "180+1"]
[EndTime "15:25:36 PST"]
[Termination "Fore_Man won on time"]

1. d4 {[%clk 0:03:00.9]} 1... Nf6 {[%clk 0:02:57.4]} 2. c4 {[%clk 0:03:01.1]}
2... e6 {[%clk 0:02:57.6]} 3. Nf3 {[%clk 0:03:00.8]} 3... d5 {[%clk 0:02:55.4]}
4. Nc3 {[%clk 0:03:00.2]} 4... Be7 {[%clk 0:02:55]} 5. Bg5 {[%clk 0:02:59.4]}
5... c6 {[%clk 0:02:54.8]} 6. e3 {[%clk 0:02:59.6]} 6... O-O {[%clk 0:02:54.6]}
7. Rc1 {[%clk 0:02:59.8]} 7... Nbd7 {[%clk 0:02:55.4]} 8. Bd3 {[%clk 0:02:59.3]}
8... Re8 {[%clk 0:02:55.2]} 9. O-O {[%clk 0:02:55]} 9... dxc4 {[%clk 0:02:54.3]}
10. Bxc4 {[%clk 0:02:54.9]} 10... b5 {[%clk 0:02:55]} 11. Be2 {[%clk 0:02:21.5]}
11... Bb7 {[%clk 0:02:54.2]} 12. Ne5 {[%clk 0:02:17.1]} 12... Nxe5 {[%clk
0:02:49.4]} 13. dxe5 {[%clk 0:02:16.2]} 13... Nd7 {[%clk 0:02:38.9]} 14. Bf4
{[%clk 0:02:07.3]} 14... Nc5 {[%clk 0:02:33]} 15. Qc2 {[%clk 0:01:56.8]} 15...
a6 {[%clk 0:02:28.3]} 16. Bf3 {[%clk 0:01:28.3]} 16... Qb6 {[%clk 0:02:21.7]}
17. Ne4 {[%clk 0:01:14.4]} 17... Nxe4 {[%clk 0:02:21.4]} 18. Bxe4 {[%clk
0:01:14.4]} 18... g6 {[%clk 0:02:14.1]} 19. Rfd1 {[%clk 0:00:46.1]} 19... c5
{[%clk 0:02:12.6]} 20. Rd7 {[%clk 0:00:39.3]} 20... Bxe4 {[%clk 0:02:11.1]} 21.
Qxe4 {[%clk 0:00:39.7]} 21... Rad8 {[%clk 0:02:11.8]} 22. Rcd1 {[%clk
0:00:25.2]} 22... Rxd7 {[%clk 0:02:09.5]} 23. Rxd7 {[%clk 0:00:25.1]} 23... Qa5
{[%clk 0:02:10.4]} 24. h3 {[%clk 0:00:16.2]} 24... Qe1+ {[%clk 0:02:07.4]} 25.
Kh2 {[%clk 0:00:15.3]} 25... Qxf2 {[%clk 0:02:08.3]} 26. Bh6 {[%clk 0:00:08.3]}
26... Qh4 {[%clk 0:02:04.2]} 27. Qxh4 {[%clk 0:00:05.1]} 27... Bxh4 {[%clk
0:02:05.1]} 28. Ra7 {[%clk 0:00:04.7]} 28... Rd8 {[%clk 0:01:51.6]} 29. g3
{[%clk 0:00:02.2]} 29... Rd2+ {[%clk 0:01:41.6]} 30. Kg1 {[%clk 0:00:01.2]}
30... Bd8 {[%clk 0:01:42.5]} 0-1

[Event "Late-Titled-Tuesday-Blitz-December-26-2023"]
[Site "Chess.com"]
[Date "2023.12.26"]
[Round "8"]
[White "cthake"]
[Black "SEBAZZANO"]
[Result "0-1"]
[WhiteElo "1922"]
[BlackElo "2273"]
[TimeControl "180+1"]
[EndTime "15:25:39 PST"]
[Termination "SEBAZZANO won by checkmate"]

1. c4 {[%clk 0:03:00.9]} 1... Nf6 {[%clk 0:02:59.7]} 2. Nc3 {[%clk 0:03:00.7]}
2... c5 {[%clk 0:02:59.5]} 3. g3 {[%clk 0:03:00.6]} 3... g6 {[%clk 0:02:59.5]}
4. Bg2 {[%clk 0:03:00.8]} 4... Bg7 {[%clk 0:03:00.4]} 5. d3 {[%clk 0:02:59.2]}
5... O-O {[%clk 0:03:01.3]} 6. e4 {[%clk 0:02:59]} 6... d6 {[%clk 0:03:00.5]} 7.
Nge2 {[%clk 0:02:59]} 7... Nc6 {[%clk 0:03:01]} 8. O-O {[%clk 0:02:58.7]} 8...
e5 {[%clk 0:03:01.5]} 9. h3 {[%clk 0:02:57.9]} 9... Nd4 {[%clk 0:03:01.9]} 10.
Nd5 {[%clk 0:02:55.6]} 10... Rb8 {[%clk 0:02:58.7]} 11. a4 {[%clk 0:02:51.9]}
11... Nxd5 {[%clk 0:02:51.4]} 12. cxd5 {[%clk 0:02:49]} 12... Bd7 {[%clk
0:02:35.6]} 13. Nxd4 {[%clk 0:02:27.5]} 13... exd4 {[%clk 0:02:31.3]} 14. f4
{[%clk 0:02:23.6]} 14... a6 {[%clk 0:02:29.1]} 15. a5 {[%clk 0:02:17.1]} 15...
b6 {[%clk 0:02:23.6]} 16. Bd2 {[%clk 0:02:07.6]} 16... b5 {[%clk 0:02:15.3]} 17.
Qc2 {[%clk 0:01:45.2]} 17... c4 {[%clk 0:02:13.6]} 18. Rae1 {[%clk 0:01:30.5]}
18... Rc8 {[%clk 0:02:03.6]} 19. Bb4 {[%clk 0:01:28.8]} 19... Be8 {[%clk
0:01:42.6]} 20. e5 {[%clk 0:01:26.1]} 20... dxe5 {[%clk 0:01:30.3]} 21. fxe5
{[%clk 0:01:24]} 21... Qg5 {[%clk 0:01:28.4]} 22. e6 {[%clk 0:01:10.9]} 22...
fxe6 {[%clk 0:00:47.6]} 23. Bxf8 {[%clk 0:01:09.1]} 23... Bxf8 {[%clk
0:00:48.5]} 24. dxe6 {[%clk 0:01:07.3]} 24... Qxg3 {[%clk 0:00:48.1]} 25. Qf2
{[%clk 0:01:04.7]} 25... Bd6 {[%clk 0:00:45.3]} 26. e7 {[%clk 0:00:48.4]} 26...
Qh2# {[%clk 0:00:44.1]} 0-1